fUSD/lending_fUSD_20250521
["ID","MTS","AMOUNT","RATE_DAILY","PERIOD"]
[361839522,1747827122335,-474.78915743,0.00039999,31]
[361839523,1747827122346,-460.88661116,0.00039999,31]
[361839524,1747827122357,-464.11883271,0.00039999,7]
[361839525,1747827122367,-367.99374877,0.00039999,31]
[361839526,1747827122379,-500.0,0.00039999,31]
[361839527,1747827122389,-399.70408554,0.00039999,31]
[361839528,1747827122400,-50000.0,0.0004,40]
[361839529,1747827122410,-86801.0,0.0004,120]
[361839530,1747827122420,-889.55878894,0.0004,10]
[361839531,1747827122430,-2512.8734485,0.0004,120]
[361839532,1747827122441,-652.0,0.0004,120]
[361839533,1747827122451,-200.0,0.0004,120]
[361839534,1747827122461,-1000.02833423,0.0004,2]
[361839535,1747827122472,-17527.40689365,0.0004,30]
[361839536,1747827122487,-500.0,0.0004,60]
[361839537,1747827122498,-30000.0,0.0004,30]
[361839538,1747827122508,-15783.25978734,0.0004,30]
[361839539,1747827122519,-1581.24716456,0.0004,2]
[361839540,1747827122529,-160.62,0.0004,120]
[361839541,1747827122539,-1800.0,0.0004,41]
[361839542,1747827122551,-329.04574021,0.0004,120]
[361839543,1747827122563,-2177.0,0.0004,60]
[361839544,1747827122573,-1500.1032527,0.0004,120]
[361839545,1747827122583,-13258.38938,0.0004,10]
[361839546,1747827122593,-1000.0,0.0004,30]
[361839547,1747827122603,-1000.0,0.0004,30]
[361839548,1747827122613,-500.0,0.0004,60]
[361839549,1747827122624,-8458.07190125,0.0004,120]
[361839550,1747827122634,-194.08157279,0.0004,120]
[361839551,1747827122644,-480.50415143,0.0004,4]
[361839552,1747827122655,-10000.0,0.0004,90]
[361839553,1747827122665,-619.71139721,0.0004,120]
[361839554,1747827122676,-10000.0,0.0004,120]
[361839555,1747827122687,-397.0,0.0004,120]
[361839556,1747827122697,-21820.93927715,0.0004,30]
[361839557,1747827122707,-50000.0,0.0004,10]
[361839558,1747827122718,-1089.87164224,0.0004,30]
[361839559,1747827122732,-25832.25348018,0.0004,30]
[361839560,1747827122743,-518.7364585,0.0004,45]
[361839561,1747827122754,-163.1020023,0.0004,120]
[361839562,1747827122765,-154.69410446,0.0004,2]
[361839563,1747827122776,-13784.61404229,0.0004,30]
[361839564,1747827122786,-13121.38904037,0.0004,30]
[361839565,1747827122797,-10885.24510803,0.0004,30]
[361839566,1747827122809,-7827.28881605,0.0004,30]
[361839567,1747827122820,-4000.0,0.0004,120]
[361839568,1747827122830,-20581.0,0.0004,5]
[361839569,1747827122841,-5000.0,0.0004,30]
[361839570,1747827122852,-182.99033758,0.00040004,7]
[361839571,1747827122862,-150.0,0.00040025,7]
[361839572,1747827122872,-1441.14,0.00040037,30]
[361839573,1747827122882,-1441.14,0.00040037,30]
[361839574,1747827122893,-30000.0,0.000401,50]
[361839575,1747827122903,-60797.42556055,0.000401,2]
[361839576,1747827122913,-302.63,0.000401,14]
[361839577,1747827122931,-150.0,0.00040103,7]
[361839578,1747827122947,-187.78006525,0.00040168,2]
[361839579,1747827122957,-1491.30447232,0.00040168,2]
[361839580,1747827122967,-500.0,0.00040172,60]
[361839581,1747827122977,-2110.0,0.00040178,30]
[361839582,1747827122988,-150.0,0.00040181,7]
[361839583,1747827122999,-17202.16234663,0.000402,120]
[361839584,1747827123009,-155.77,0.000402,31]
[361839585,1747827123020,-155.77,0.000402,31]
[361839586,1747827123031,-150.0,0.0004023,7]
[361839587,1747827123041,-150.0,0.00040245,120]
[361839588,1747827123052,-150.0,0.00040259,7]
[361839589,1747827123063,-1000.0,0.00040272,7]
[361839590,1747827123074,-1435.0,0.00040273,20]
[361839591,1747827123086,-150.0,0.00040274,2]
[361839592,1747827123097,-353.35,0.00040274,2]
[361839593,1747827123108,-353.35,0.00040274,2]
[361839594,1747827123119,-353.35,0.00040274,2]
[361839595,1747827123130,-355.96,0.00040274,2]
[361839596,1747827123140,-1441.14,0.00040311,30]
[361839597,1747827123150,-1441.14,0.00040311,30]
[361839598,1747827123161,-150.0,0.00040337,7]
[361839599,1747827123172,-150.0,0.00040337,7]
[361839600,1747827123182,-150.0,0.00040409,120]
[361839601,1747827123192,-150.0,0.00040415,7]
[361839602,1747827123203,-368.97380959,0.00040435,30]
[361839603,1747827123213,-150.0,0.00040444,120]
[361839604,1747827123224,-681.51,0.00040468,2]
[361839605,1747827123234,-150.0,0.00040493,7]
[361839606,1747827123245,-12897.63226452,0.000405,120]
[361839607,1747827123255,-229.46944983,0.000405,120]
[361839608,1747827123267,-151.0,0.000405,14]
[361839609,1747827123277,-151.0,0.000405,14]
[361839610,1747827123288,-151.0,0.000405,14]
[361839611,1747827123298,-151.0,0.000405,14]
[361839612,1747827123309,-2000.0,0.000405,120]
[361839613,1747827123319,-1184.9989602,0.000405,120]
[361839614,1747827123329,-2468.98,0.00040547,120]
[361839615,1747827123339,-2468.98,0.00040547,120]
[361839616,1747827123350,-2468.98,0.00040547,120]
[361839617,1747827123365,-2468.98,0.00040547,120]
[361839618,1747827123376,-2468.98,0.00040547,120]
[361839619,1747827123386,-2468.98,0.00040547,120]
[361839620,1747827123397,-2468.98,0.00040547,120]
[361839621,1747827123407,-2468.98,0.00040547,120]
[361839622,1747827123418,-2468.98,0.00040547,120]
[361839623,1747827123429,-2468.98,0.00040547,120]
[361839624,1747827123439,-2468.98,0.00040547,120]
[361839625,1747827123449,-2468.98,0.00040547,120]
[361839626,1747827123459,-2468.98,0.00040547,120]
[361839627,1747827123469,-2468.98,0.00040547,120]
[361839628,1747827123480,-2468.98,0.00040547,120]
[361839629,1747827123490,-2468.98,0.00040547,120]
[361839630,1747827123500,-2468.98,0.00040547,120]
[361839631,1747827123511,-2468.98,0.00040547,120]
[361839632,1747827123521,-2468.98,0.00040547,120]
[361839633,1747827123532,-2468.98,0.00040547,120]
[361839634,1747827123543,-2468.98,0.00040547,120]
[361839635,1747827123553,-2468.98,0.00040547,120]
[361839636,1747827123564,-2468.98,0.00040547,120]
[361839637,1747827123575,-2469.00277264,0.00040547,120]
[361839638,1747827123584,-150.0,0.0004056,120]
[361839639,1747827123595,-150.0,0.00040571,7]
[361839640,1747827123606,-1441.14,0.00040585,30]
[361839641,1747827123616,-1441.14,0.00040585,30]
[361839642,1747827123626,-177018.67269839,0.00040586,120]
[361839643,1747827123636,-350.26029,0.000406,120]
[361839644,1747827123646,-18329.56,0.000406,14]
[361839645,1747827123657,-150.0,0.00040649,7]
[361839646,1747827123667,-150.0,0.00040665,120]
[361839647,1747827123679,-2110.0,0.00040678,30]
[361839648,1747827123690,-4076.0,0.000407,117]
[361839649,1747827123701,-150.0,0.00040727,7]
[361839650,1747827123712,-16000.0,0.00040766,2]
[361839651,1747827123726,-150.0,0.00040766,7]
[361839652,1747827123738,-150.0,0.00040766,7]
[361839653,1747827123749,-150.0,0.00040766,7]
[361839654,1747827123760,-150.0,0.00040766,7]
[361839655,1747827123771,-150.0,0.00040805,7]
[361839656,1747827123783,-12000.0,0.00040812,8]
[361839657,1747827123794,-1441.14,0.00040859,30]
[361839658,1747827123806,-1441.14,0.00040859,30]
[361839659,1747827123818,-10700.0,0.0004088,120]
[361839660,1747827123829,-150.0,0.00040883,7]
[361839661,1747827123840,-160.0,0.000409,37]
[361839662,1747827123851,-55464.5394498,0.000409,30]
[361839663,1747827123862,-150.0,0.00040961,7]
[361839664,1747827123873,-50000.0,0.00041,41]
[361839665,1747827123883,-2602.62139162,0.00041,10]
[361839666,1747827123894,-510.0,0.00041,120]
[361839667,1747827123905,-10000.0,0.00041,120]
[361839668,1747827123915,-324.0,0.00041,120]
[361839669,1747827123926,-44132.0,0.00041,120]
[361839670,1747827123937,-200.0,0.00041,120]
[361839671,1747827123948,-900.0,0.00041,42]
[361839672,1747827123959,-173.87949356,0.00041,30]
[361839673,1747827123970,-776.0,0.00041,60]
[361839674,1747827123980,-10000.0,0.00041,120]
[361839675,1747827123991,-17974.38,0.00041,120]
[361839676,1747827124003,-152.0,0.00041,30]
[361839677,1747827124013,-10266.0,0.00041,120]
[361839678,1747827124027,-7077.26907082,0.00041,50]
[361839679,1747827124038,-39964.24635233,0.00041,30]
[361839680,1747827124048,-157.0,0.00041,90]
[361839681,1747827124059,-267.46074303,0.00041009,2]
[361839682,1747827124069,-500.0,0.00041037,30]
[361839683,1747827124085,-150.0,0.00041039,7]
[361839684,1747827124095,-500.0,0.00041076,2]
[361839685,1747827124106,-500.0,0.00041076,2]
[361839686,1747827124311,-500.0,0.00041076,2]
[361839687,1747827124322,-500.0,0.00041076,2]
[361839688,1747827124332,-500.0,0.00041076,2]
[361839689,1747827124343,-500.0,0.00041076,2]
[361839690,1747827124353,-500.0,0.00041076,2]
[361839691,1747827124363,-500.0,0.00041076,2]
[361839692,1747827124374,-500.0,0.00041076,2]
[361839693,1747827124383,-500.0,0.00041076,2]
[361839694,1747827124394,-500.0,0.00041076,2]
[361839695,1747827124404,-500.0,0.00041076,2]
[361839696,1747827124414,-500.0,0.00041076,2]
[361839697,1747827124423,-500.0,0.00041076,2]
[361839698,1747827124433,-500.0,0.00041076,2]
[361839699,1747827124443,-500.0,0.00041076,2]
[361839700,1747827124452,-500.0,0.00041076,2]
[361839701,1747827124467,-500.0,0.00041076,2]
[361839702,1747827124476,-500.0,0.00041076,2]
[361839703,1747827124485,-500.0,0.00041076,2]
[361839704,1747827124495,-500.0,0.00041076,2]
[361839705,1747827124505,-500.0,0.00041076,2]
[361839706,1747827124515,-500.0,0.00041076,2]
[361839707,1747827124525,-500.0,0.00041076,2]
[361839708,1747827124535,-500.0,0.00041076,2]
[361839709,1747827124544,-500.0,0.00041076,2]
[361839710,1747827124554,-500.0,0.00041076,2]
[361839711,1747827124564,-500.0,0.00041076,2]
[361839712,1747827124574,-400.0,0.00041095,2]
[361839713,1747827124584,-400.0,0.00041095,2]
[361839714,1747827124594,-400.0,0.00041095,2]
[361839715,1747827124603,-400.0,0.00041095,2]
[361839716,1747827124613,-340.50629318,0.00041095,2]
[361839717,1747827124623,-420.0,0.00041095,2]
[361839718,1747827124632,-420.0,0.00041095,2]
[361839719,1747827124642,-420.0,0.00041095,2]
[361839720,1747827124651,-420.0,0.00041095,2]
[361839721,1747827124661,-420.0,0.00041095,2]
[361839722,1747827124672,-420.0,0.00041095,2]
[361839723,1747827124682,-420.0,0.00041095,2]
[361839724,1747827124692,-163.32913652,0.00041095,2]
[361839725,1747827124702,-388.00655341,0.00041095,2]
[361839726,1747827124712,-400.0,0.00041095,120]
[361839727,1747827124724,-400.0,0.00041095,2]
[361839728,1747827124735,-420.0,0.00041095,2]
[361839729,1747827124746,-400.0,0.00041095,2]
[361839730,1747827124755,-400.0,0.00041095,2]
[361839731,1747827124767,-400.0,0.00041095,120]
[361839732,1747827124778,-400.0,0.00041095,2]
[361839733,1747827124788,-400.0,0.00041095,120]
[361839734,1747827124798,-402.03085061,0.00041095,120]
[361839735,1747827124809,-400.0,0.00041095,120]
[361839736,1747827124819,-400.0,0.00041095,2]
[361839737,1747827124830,-400.0,0.00041095,120]
[361839738,1747827124840,-400.0,0.00041095,2]
[361839739,1747827124850,-400.0,0.00041095,120]
[361839740,1747827124860,-400.0,0.00041095,2]
[361839741,1747827124870,-400.0,0.00041095,120]
[361839742,1747827124881,-400.0,0.00041095,2]
[361839743,1747827124891,-183.00771676,0.00041095,2]
[361839744,1747827124901,-3860.28,0.00041095,5]
[361839745,1747827124923,-3860.28,0.00041095,5]
[361839746,1747827124934,-3860.28,0.00041095,5]
[361839747,1747827124944,-3860.28,0.00041095,5]
[361839748,1747827124954,-3860.28,0.00041095,5]
[361839749,1747827124963,-3860.28,0.00041095,5]
[361839750,1747827124973,-3860.28,0.00041095,5]
[361839751,1747827124983,-3860.28,0.00041095,5]
[361839752,1747827124992,-3860.28,0.00041095,5]
[361839753,1747827125002,-3860.28,0.00041095,5]
[361839754,1747827125011,-3860.28,0.00041095,5]
[361839755,1747827125021,-3860.28,0.00041095,5]
[361839756,1747827125031,-3860.28,0.00041095,5]
[361839757,1747827125040,-3860.28,0.00041095,5]
[361839758,1747827125050,-3860.28,0.00041095,5]
[361839759,1747827125059,-3860.28,0.00041095,5]
[361839760,1747827125068,-3860.28,0.00041095,5]
[361839761,1747827125078,-3860.28,0.00041095,5]
[361839762,1747827125087,-3860.28,0.00041095,5]
[361839763,1747827125097,-3860.28,0.00041095,5]
[361839764,1747827125106,-3860.28,0.00041095,5]
[361839765,1747827125116,-3860.28,0.00041095,5]
[361839766,1747827125126,-3860.28,0.00041095,5]
[361839767,1747827125136,-3860.38385705,0.00041095,5]
[361839768,1747827125145,-420.0,0.00041095,5]
[361839769,1747827125155,-420.0,0.00041095,5]
[361839770,1747827125165,-340.63,0.00041095,5]
[361839771,1747827125174,-420.0,0.00041095,5]
[361839772,1747827125184,-420.0,0.00041095,5]
[361839773,1747827125194,-159.5,0.00041095,5]
[361839774,1747827125203,-5000.0,0.00041095,3]
[361839775,1747827125213,-420.0,0.00041095,5]
[361839776,1747827125223,-420.0,0.00041095,5]
[361839777,1747827125232,-350.78,0.00041095,5]
[361839778,1747827125241,-420.0,0.00041095,5]
[361839779,1747827125251,-358.48,0.00041095,5]
[361839780,1747827125260,-420.0,0.00041095,5]
[361839781,1747827125270,-420.0,0.00041095,5]
[361839782,1747827125280,-420.0,0.00041095,5]
[361839783,1747827125289,-420.0,0.00041095,5]
[361839784,1747827125299,-420.0,0.00041095,5]
[361839785,1747827125308,-420.0,0.00041095,5]
[361839786,1747827125317,-420.0,0.00041095,5]
[361839787,1747827125327,-420.0,0.00041095,5]
[361839788,1747827125336,-420.0,0.00041095,5]
[361839789,1747827125351,-420.0,0.00041095,5]
[361839790,1747827125361,-420.0,0.00041095,5]
[361839791,1747827125370,-420.0,0.00041095,5]
[361839792,1747827125380,-420.0,0.00041095,5]
[361839793,1747827125389,-450.40713862,0.00041095,5]
[361839794,1747827125398,-420.0,0.00041095,5]
[361839795,1747827125408,-420.0,0.00041095,5]
[361839796,1747827125418,-420.0,0.00041095,5]
[361839797,1747827125427,-420.0,0.00041095,5]
[361839798,1747827125437,-384.22,0.00041095,5]
[361839799,1747827125447,-420.0,0.00041095,5]
[361839800,1747827125457,-420.0,0.00041095,5]
[361839801,1747827125467,-293.99,0.00041095,5]
[361839802,1747827125476,-420.0,0.00041095,5]
[361839803,1747827125486,-282.1,0.00041095,5]
[361839804,1747827125495,-420.0,0.00041095,5]
[361839805,1747827125505,-420.0,0.00041095,5]
[361839806,1747827125515,-199.49,0.00041095,5]
[361839807,1747827125524,-420.0,0.00041095,5]
[361839808,1747827125536,-532.87,0.00041095,5]
[361839809,1747827125547,-420.0,0.00041095,5]
[361839810,1747827125559,-503.85,0.00041095,5]
[361839811,1747827125570,-500.0,0.00041095,2]
[361839812,1747827125579,-500.0,0.00041095,2]
[361839813,1747827125592,-500.0,0.00041095,2]
[361839814,1747827125601,-500.0,0.00041095,2]
[361839815,1747827125611,-500.0,0.00041095,2]
[361839816,1747827125621,-500.0,0.00041095,2]
[361839817,1747827125630,-636.02228066,0.00041095,2]
[361839818,1747827125639,-500.0,0.00041095,120]
[361839819,1747827125650,-161.08,0.00041095,120]
[361839820,1747827125659,-555.13,0.00041095,5]
[361839821,1747827125668,-555.13,0.00041095,5]
[361839822,1747827125678,-555.13,0.00041095,5]
[361839823,1747827125689,-555.13,0.00041095,5]
[361839824,1747827125699,-555.13,0.00041095,5]
[361839825,1747827125708,-555.13,0.00041095,5]
[361839826,1747827125718,-555.13,0.00041095,5]
[361839827,1747827125730,-555.13,0.00041095,5]
[361839828,1747827125740,-555.13,0.00041095,5]
[361839829,1747827125750,-555.13,0.00041095,5]
[361839830,1747827125760,-555.13,0.00041095,5]
[361839831,1747827125773,-555.13,0.00041095,5]
[361839832,1747827125788,-555.13,0.00041095,5]
[361839833,1747827125800,-555.13,0.00041095,5]
[361839834,1747827125810,-555.13,0.00041095,5]
[361839835,1747827125820,-555.13,0.00041095,5]
[361839836,1747827125830,-555.13,0.00041095,5]
[361839837,1747827125840,-555.13,0.00041095,5]
[361839838,1747827125851,-555.13,0.00041095,5]
[361839839,1747827125861,-555.13,0.00041095,5]
[361839840,1747827125870,-555.13,0.00041095,5]
[361839841,1747827125880,-555.13,0.00041095,5]
[361839842,1747827125890,-555.13,0.00041095,5]
[361839843,1747827125900,-555.21968911,0.00041095,5]
[361839844,1747827125910,-591.09,0.00041095,120]
[361839845,1747827125919,-591.09,0.00041095,120]
[361839846,1747827125929,-591.09,0.00041095,120]
[361839847,1747827125939,-591.09,0.00041095,120]
[361839848,1747827125949,-591.09,0.00041095,120]
[361839849,1747827125960,-591.09,0.00041095,120]
[361839850,1747827125970,-591.09,0.00041095,120]
[361839851,1747827125980,-591.09,0.00041095,120]
[361839852,1747827125989,-591.09,0.00041095,120]
[361839853,1747827125999,-591.09,0.00041095,120]
[361839854,1747827126009,-591.09,0.00041095,120]
[361839855,1747827126019,-591.09,0.00041095,120]
[361839856,1747827126030,-591.09,0.00041095,120]
[361839857,1747827126040,-591.09,0.00041095,120]
[361839858,1747827126050,-591.09,0.00041095,120]
[361839859,1747827126060,-591.09,0.00041095,120]
[361839860,1747827126070,-591.09,0.00041095,120]
[361839861,1747827126079,-591.09,0.00041095,120]
[361839862,1747827126089,-591.09,0.00041095,120]
[361839863,1747827126099,-591.09,0.00041095,120]
[361839864,1747827126109,-591.09,0.00041095,120]
[361839865,1747827126118,-591.09,0.00041095,120]
[361839866,1747827126129,-591.09,0.00041095,120]
[361839867,1747827126139,-591.2569358,0.00041095,120]
[361839868,1747827126149,-600.0,0.00041095,120]
[361839869,1747827126159,-600.0,0.00041095,120]
[361839870,1747827126170,-600.0,0.00041095,120]
[361839871,1747827126180,-200.0,0.00041095,120]
[361839872,1747827126190,-1000.0,0.00041095,5]
[361839873,1747827126200,-1000.0,0.00041095,5]
[361839874,1747827126210,-1000.0,0.00041095,5]
[361839875,1747827126220,-1000.0,0.00041095,5]
[361839876,1747827126235,-1000.0,0.00041095,5]
[361839877,1747827126245,-1000.0,0.00041095,5]
[361839878,1747827126255,-1000.0,0.00041095,5]
[361839879,1747827126265,-1000.0,0.00041095,5]
[361839880,1747827126276,-1000.0,0.00041095,5]
[361839881,1747827126286,-1000.0,0.00041095,5]
[361839882,1747827126296,-1000.0,0.00041095,5]
[361839883,1747827126306,-1000.0,0.00041095,5]
[361839884,1747827126316,-1000.0,0.00041095,5]
[361839885,1747827126327,-1000.0,0.00041095,5]
[361839886,1747827126337,-1000.0,0.00041095,5]
[361839887,1747827126348,-1000.0,0.00041095,5]
[361839888,1747827126358,-1000.0,0.00041095,5]
[361839889,1747827126368,-1000.0,0.00041095,5]
[361839890,1747827126380,-1000.0,0.00041095,5]
[361839891,1747827126390,-551.65406875,0.00041095,5]
[361839892,1747827126400,-500.0,0.00041095,10]
[361839893,1747827126410,-500.0,0.00041095,10]
[361839894,1747827126421,-500.0,0.00041095,10]
[361839895,1747827126433,-500.0,0.00041095,10]
[361839896,1747827126443,-500.0,0.00041095,10]
[361839897,1747827126454,-500.0,0.00041095,10]
[361839898,1747827126464,-500.0,0.00041095,10]
[361839899,1747827126474,-500.0,0.00041095,10]
[361839900,1747827126484,-500.0,0.00041095,10]
[361839901,1747827126495,-500.0,0.00041095,10]
[361839902,1747827126506,-365.94695209,0.00041095,10]
[361839903,1747827126517,-200.0,0.00041096,10]
[361839904,1747827126527,-500.0,0.00041096,5]
[361839905,1747827126538,-5000.0,0.00041096,30]
[361839906,1747827126548,-500.0,0.00041096,30]
[361839907,1747827126558,-500.0,0.00041096,30]
[361839908,1747827126569,-500.0,0.00041096,30]
[361839909,1747827126580,-500.0,0.00041096,30]
[361839910,1747827126590,-500.0,0.00041096,30]
[361839911,1747827126600,-500.0,0.00041096,30]
[361839912,1747827126611,-500.0,0.00041096,30]
[361839913,1747827126621,-500.0,0.00041096,30]
[361839914,1747827126632,-500.0,0.00041096,30]
[361839915,1747827126642,-500.0,0.00041096,30]
[361839916,1747827126653,-500.0,0.00041096,30]
[361839917,1747827126673,-500.0,0.00041096,30]
[361839918,1747827126684,-500.0,0.00041096,30]
[361839919,1747827126695,-586.0,0.00041096,30]
[361839920,1747827126706,-500.0,0.00041096,30]
[361839921,1747827126716,-500.0,0.00041096,30]
[361839922,1747827126728,-500.0,0.00041096,30]
[361839923,1747827126738,-500.0,0.00041096,30]
[361839924,1747827126748,-2000.0,0.00041096,120]
[361839925,1747827126759,-2000.0,0.00041096,120]
[361839926,1747827126771,-2000.0,0.00041096,120]
[361839927,1747827126782,-2000.0,0.00041096,120]
[361839928,1747827126792,-2000.0,0.00041096,120]
[361839929,1747827126805,-2000.0,0.00041096,120]
[361839930,1747827126815,-2000.0,0.00041096,120]
[361839931,1747827126827,-153.98,0.00041096,2]
[361839932,1747827126838,-2000.0,0.00041096,120]
[361839933,1747827126849,-2000.0,0.00041096,120]
[361839934,1747827126860,-2039.0,0.00041096,120]
[361839935,1747827126871,-500.0,0.00041096,30]
[361839936,1747827126882,-500.0,0.00041096,30]
[361839937,1747827126893,-500.0,0.00041096,30]
[361839938,1747827126903,-500.0,0.00041096,30]
[361839939,1747827126914,-500.0,0.00041096,30]
[361839940,1747827126925,-500.0,0.00041096,30]
[361839941,1747827126935,-500.0,0.00041096,30]
[361839942,1747827126946,-500.0,0.00041096,30]
[361839943,1747827126957,-500.0,0.00041096,30]
[361839944,1747827126968,-500.0,0.00041096,30]
[361839945,1747827126979,-500.0,0.00041096,30]
[361839946,1747827126990,-500.0,0.00041096,30]
[361839947,1747827127000,-500.0,0.00041096,30]
[361839948,1747827127011,-500.0,0.00041096,30]
[361839949,1747827127022,-500.0,0.00041096,30]
[361839950,1747827127033,-500.0,0.00041096,30]
[361839951,1747827127043,-500.0,0.00041096,30]
[361839952,1747827127054,-500.0,0.00041096,30]
[361839953,1747827127064,-500.0,0.00041096,30]
[361839954,1747827127075,-500.0,0.00041096,30]
[361839955,1747827127086,-500.0,0.00041096,30]
[361839956,1747827127105,-500.0,0.00041096,30]
[361839957,1747827127116,-500.0,0.00041096,30]
[361839958,1747827127127,-500.0,0.00041096,30]
[361839959,1747827127138,-500.0,0.00041096,30]
[361839960,1747827127148,-500.0,0.00041096,30]
[361839961,1747827127159,-500.0,0.00041096,30]
[361839962,1747827127169,-500.0,0.00041096,30]
[361839963,1747827127180,-500.0,0.00041096,30]
[361839964,1747827127191,-500.0,0.00041096,30]
[361839965,1747827127202,-500.0,0.00041096,30]
[361839966,1747827127213,-2000.0,0.00041096,120]
[361839967,1747827127223,-500.0,0.00041096,30]
[361839968,1747827127233,-500.0,0.00041096,30]
[361839969,1747827127244,-500.0,0.00041096,30]
[361839970,1747827127255,-500.0,0.00041096,30]
[361839971,1747827127266,-500.0,0.00041096,30]
[361839972,1747827127277,-500.0,0.00041096,30]
[361839973,1747827127288,-500.0,0.00041096,30]
[361839974,1747827127299,-500.0,0.00041096,30]
[361839975,1747827127310,-500.0,0.00041096,30]
[361839976,1747827127321,-500.0,0.00041096,30]
[361839977,1747827127331,-500.0,0.00041096,30]
[361839978,1747827127342,-500.0,0.00041096,30]
[361839979,1747827127352,-500.0,0.00041096,30]
[361839980,1747827127363,-500.0,0.00041096,30]
[361839981,1747827127374,-500.0,0.00041096,30]
[361839982,1747827127385,-209.0,0.00041096,120]
[361839983,1747827127396,-500.0,0.00041096,30]
[361839984,1747827127406,-500.0,0.00041096,30]
[361839985,1747827127417,-500.0,0.00041096,30]
[361839986,1747827127428,-500.0,0.00041096,30]
[361839987,1747827127439,-1156.293949,0.00041096,14]
[361839988,1747827127451,-1156.293949,0.00041096,14]
[361839989,1747827127461,-1156.293949,0.00041096,14]
[361839990,1747827127472,-1156.293949,0.00041096,14]
[361839991,1747827127484,-1156.293949,0.00041096,14]
[361839992,1747827127494,-1156.293949,0.00041096,14]
[361839993,1747827127505,-1156.293949,0.00041096,14]
[361839994,1747827127516,-1156.293949,0.00041096,14]
[361839995,1747827127531,-1156.293949,0.00041096,14]
[361839996,1747827127542,-1156.293949,0.00041096,14]
[361839997,1747827127553,-1156.293949,0.00041096,14]
[361839998,1747827127564,-1156.293949,0.00041096,14]
[361839999,1747827127575,-1156.293949,0.00041096,14]
[361840000,1747827127586,-1156.293949,0.00041096,14]
[361840001,1747827127597,-262863.53,0.00041096,60]
[361840002,1747827127608,-169.84,0.00041096,2]
[361840003,1747827127618,-162.8,0.00041096,2]
[361840004,1747827127631,-170.1,0.00041096,2]
[361840005,1747827127641,-300.0,0.00041096,2]
[361840006,1747827127653,-1158.37,0.00041096,2]
[361840007,1747827127665,-170.1,0.00041096,2]
[361840008,1747827127677,-170.1,0.00041096,2]
[361840009,1747827127688,-170.1,0.00041096,2]
[361840010,1747827127699,-170.1,0.00041096,2]
[361840011,1747827127710,-314.15,0.00041096,2]
[361840012,1747827127722,-168.81,0.00041096,2]
[361840013,1747827127738,-300.64,0.00041096,2]
[361840014,1747827127749,-193.40528076,0.00041096,31]
[361840015,1747827127760,-249.0069274,0.00041096,31]
[361840016,1747827127772,-168.48272347,0.000411,30]
[361840017,1747827127783,-1507.0,0.000411,2]
[361840018,1747827127794,-500.0,0.00041111,30]
[361840019,1747827127807,-150.0,0.00041117,30]
[361840020,1747827127818,-1441.14,0.00041133,30]
[361840021,1747827127828,-1441.14,0.00041133,30]